fUSD/lending_fUSD_20240919
["ID","MTS","AMOUNT","RATE_DAILY","PERIOD"]
[338582069,1726747844247,-334.2036187,0.0001499,2]
[338582071,1726747844257,-416.21,0.00014998,2]
[338582073,1726747844266,-474.91456684,0.00014999,2]
[338582075,1726747844276,-292418.96858762,0.00015,2]
[338582096,1726747844467,-110524.25498921,0.00015,2]
[338582098,1726747844479,-39982.21591552,0.00015,2]
[338582100,1726747844490,-119614.76461552,0.00015,2]
[338582102,1726747844502,-575.3490369,0.00015,2]
[338582104,1726747844513,-690.03708721,0.00015,2]
[338582106,1726747844523,-93740.79375558,0.00015,2]
[338582108,1726747844535,-623.77504945,0.00015,2]
[338582111,1726747844557,-553.25,0.00014794,2]
[338582113,1726747844566,-475.85878819,0.00015,2]
[338582115,1726747844577,-2960.45,0.00015,2]
[338582118,1726747844592,-12240.78132824,0.00015,2]
[338582120,1726747844604,-6052.1147381,0.00015,2]
[338582122,1726747844615,-1161.04375801,0.00015,2]
[338582124,1726747844626,-350.52959293,0.00015,2]
[338582127,1726747844637,-368.34837714,0.00015,2]
[338582129,1726747844650,-522.37186037,0.00015,2]
[338582131,1726747844662,-253.71827048,0.00015,2]
[338582134,1726747844684,-333.39037219,0.00015,2]
[338582150,1726747844834,-553.25,0.00014794,2]
[338582151,1726747844843,-70.51445159,0.00014794,2]
[338582154,1726747844859,-482.73554841,0.00014794,2]
[338582156,1726747844869,-553.25,0.00014794,2]
[338582158,1726747844879,-553.25,0.00014794,2]
[338582160,1726747844888,-553.25,0.00014794,2]
[338582162,1726747844898,-3401.18835634,0.00015,2]
[338582164,1726747844910,-5525.75483118,0.00015,2]
[338582175,1726747845005,-553.25,0.00014794,2]
[338582177,1726747845014,-93.32918258,0.00015,2]
[338582179,1726747845025,-639.13062995,0.00015,2]
[338582181,1726747845036,-29273.5928218,0.00015,2]
[338582183,1726747845059,-658.76042743,0.00015,2]
[338582185,1726747845070,-657.89156372,0.00015,2]
[338582188,1726747845082,-1099.4866124,0.00015,2]
[338582324,1726747846336,-507.77316114,0.00014794,2]
[338582326,1726747846348,-45.47683886,0.00014794,2]
[338582328,1726747846358,-553.25,0.00014799,2]
[338582331,1726747846367,-96.11161771,0.00014799,2]
[338582339,1726747846447,-457.13838229,0.00014799,2]
[338582342,1726747846457,-553.25,0.00014799,2]
[338582343,1726747846467,-553.25,0.00014799,2]
[338582346,1726747846477,-553.25,0.00014799,2]
[338582348,1726747846487,-61180.07263435,0.00015,2]
[338582350,1726747846498,-2406.3416853,0.00015,2]
[338582357,1726747846556,-609.67367557,0.00015,2]
[338582359,1726747846567,-308.52858885,0.00015,2]
[338582361,1726747846578,-16253.91364835,0.00015,2]
[338582363,1726747846590,-642.65966279,0.00015,2]
[338582364,1726747846611,-39916.69654964,0.00015,2]
[338582365,1726747846646,-646.2251439,0.00015,2]
[338582366,1726747846658,-1077.00527237,0.00015,2]
[338582370,1726747850024,1000.0,0.000127,2]
[338582372,1726747918472,700.0,0.00010068,2]
[338582373,1726747918602,500.0,0.00011164,2]
[338582374,1726747920055,700.0,0.00011438,2]
[338582375,1726747943628,32160.5437,0.000127,2]
[338582376,1726748019680,500.0,0.00011164,2]
[338582378,1726748083666,405.76,0.00012052,2]
[338582379,1726748087113,500.0,0.00011164,2]
[338582380,1726748167751,700.0,0.00010068,2]
[338582381,1726748169703,700.0,0.00011438,2]
[338582398,1726748374878,182.83,0.00010959,2]
[338582399,1726748403151,24727.58350293,0.0001263,2]
[338582414,1726748654665,254.46,0.00013949,30]
[338582417,1726748750961,600.0,0.0001439,60]
[338582421,1726748779126,414.44,0.0001174,2]
[338582425,1726748914565,-700.0,0.00012808,2]
[338582426,1726748914590,-310.328,0.0001288,2]
[338582427,1726748914614,-500.0,0.00012999,2]
[338582428,1726748914638,-280.16905773,0.00012999,2]
[338582429,1726748914662,-500.0,0.00012999,2]
[338582430,1726748914686,-150.0,0.00012999,2]
[338582431,1726748914712,-300.0,0.00012999,2]
[338582432,1726748914737,-20996.50294227,0.00013,2]
[338582433,1726748918891,-40000.0,0.00013,2]
[338582434,1726748919384,-13812.18578416,0.00013,2]
[338582435,1726748919410,-26187.81421584,0.00013,2]
[338582436,1726748919944,-40000.0,0.00013,2]
[338582437,1726748920936,-199.06,0.00012885,2]
[338582438,1726748920964,-39800.94,0.00013,2]
[338582440,1726748922898,-40000.0,0.00013,2]
[338582441,1726748931870,-30000.0,0.00013,2]
[338582443,1726748948962,218.52,0.00010959,2]
[338582444,1726748952413,151.0,0.00012741,2]
[338582452,1726748962770,600.0,0.00011164,2]
[338582453,1726748964352,600.0,0.00012534,2]
[338582454,1726748973758,-300.0,0.00012999,2]
[338582455,1726748973781,-500.0,0.00012999,2]
[338582456,1726748973804,-500.0,0.00012999,2]
[338582457,1726748973826,-484.66581145,0.00012999,2]
[338582458,1726748973849,-500.0,0.00012999,2]
[338582459,1726748973876,-6451.33418855,0.00013,2]
[338582471,1726749031505,-183.42180178,0.000129,2]
[338582473,1726749031514,-355.34774474,0.000129,2]
[338582474,1726749031524,-509.63595348,0.000129,2]
[338582475,1726749031562,-1223.20287549,0.000129,2]
[338582476,1726749031574,-554.37197394,0.000129,2]
[338582477,1726749031619,-213.04609709,0.000129,2]
[338582478,1726749031628,-899.15821715,0.000129,2]
[338582479,1726749031820,-5544.56584971,0.000129,2]
[338582480,1726749031831,-249.55,0.00012945,2]
[338582481,1726749031841,-150.0,0.00012999,2]
[338582482,1726749031850,-300.0,0.00012999,2]
[338582484,1726749031859,-30482.49901596,0.00013,2]
[338582486,1726749031871,-12951.24590668,0.00013,2]
[338582488,1726749031882,-27253.31332654,0.00013,2]
[338582490,1726749031893,-538.88,0.00013,2]
[338582491,1726749031905,-5418.88227622,0.00013,2]
[338582493,1726749031917,-347.40099992,0.00013,2]
[338582495,1726749031932,-3839.44275338,0.00013,2]
[338582496,1726749031943,-1688.78034514,0.00013,2]
[338582497,1726749031954,-1728.39618865,0.00013,2]
[338582498,1726749031969,-1559.20212666,0.00013,2]
[338582500,1726749031981,-505.43097376,0.00013,2]
[338582501,1726749031996,-1218.07657921,0.00013,2]
[338582503,1726749032208,-1.55219974,0.00013,2]
[338582506,1726749037543,-500.71724414,0.00012973,2]
[338582507,1726749037553,-5254.04444942,0.00013,2]
[338582508,1726749037565,-6050.72207205,0.00013,2]
[338582509,1726749037651,-8034.35895108,0.00013,2]
[338582510,1726749037662,-968.2018973,0.00013,2]
[338582511,1726749037673,-329.5347003,0.00013,2]
[338582512,1726749037683,-5002.178935,0.00013,2]
[338582513,1726749037705,-468.72707538,0.00013,2]
[338582514,1726749037716,-1645.18714988,0.00013,2]
[338582515,1726749037819,-1609.90093525,0.00013,2]
[338582689,1726749039501,-973.0,0.00013,2]
[338582691,1726749039512,-1640.0,0.00013,2]
[338582707,1726749039665,-21099.996,0.00013,2]
[338582709,1726749039676,-6337.27809314,0.00013,2]
[338582711,1726749039689,-2122.48784,0.00013,2]
[338582715,1726749039721,-3537.71921604,0.00013,2]
[338583008,1726749042675,-32763.08117639,0.00013,2]
[338583010,1726749042686,-3172811.3135155,0.00013,2]
[338583012,1726749042697,-1214.34,0.00013,2]
[338583014,1726749042709,-1507.22499999,0.00013,2]
[338583300,1726749045482,-15356.90869655,0.00013,2]
[338583306,1726749045537,-1507.5,0.00013,2]
[338583319,1726749045646,-3634.67232653,0.00013,2]
[338583325,1726749045702,-5986.007952,0.00013,2]
[338585587,1726749078432,600.0,0.00010068,2]
[338585588,1726749080032,600.0,0.00011438,2]
[338585591,1726749194170,600.0,0.00010068,2]
[338585592,1726749195773,600.0,0.00011438,2]
[338585595,1726749274073,241.73,0.00013918,30]
[338585596,1726749292933,270.55,0.00012579,2]
[338585598,1726749321197,1332.45,0.0001257,2]
[338585600,1726749346662,1000.0,0.0001257,2]
[338585601,1726749350005,250.0,0.00012582,2]
[338585602,1726749419825,497.27,0.00010462,2]
[338585603,1726749420350,497.27,0.00012726,2]
[338585604,1726749470731,250.0,0.00012579,2]
[338585605,1726749474727,1053.84904,0.000127,2]
[338585606,1726749484047,200.0,0.0001238,2]
[338585607,1726749487090,269.8,0.0001238,2]
[338585608,1726749491281,177.60821,0.000127,2]
[338585609,1726749495694,214.28,0.0001239,2]
[338585610,1726749516198,1053.84904,0.000127,2]
[338585611,1726749541584,162.07,0.00010959,2]
[338585613,1726749592245,249.55,0.00012396,2]
[338585614,1726749595806,181.28,0.00012396,2]
[338585615,1726749612112,167.07,0.00012725,2]
[338585616,1726749632171,151.88,0.00012354,2]
[338585617,1726749632379,151.88,0.00012364,2]
[338585618,1726749632604,151.88,0.00012374,2]
[338585619,1726749633990,151.88,0.00012385,2]
[338585620,1726749634235,151.88,0.00012395,2]
[338585621,1726749634493,151.88,0.00012405,2]
[338585622,1726749634734,151.88,0.00012416,2]
[338585623,1726749668646,327.08137144,0.000127,2]
[338585626,1726749872981,229.64,0.00013918,30]
[338585627,1726749913433,200.0,0.0001239,2]
[338585628,1726749924756,150.0,0.00011688,2]
[338585629,1726749928630,150.03489883,0.00011688,2]
[338585630,1726749930535,150.27193589,0.00011688,2]
[338585631,1726749932430,150.03638702,0.00011688,2]
[338585632,1726749935928,150.09304065,0.00011688,2]
[338585633,1726749938359,250.0,0.00012416,2]
[338585634,1726749985971,447.54,0.00010479,2]
[338585635,1726750029370,1050.0,0.00011,2]
[338585636,1726750087317,384.49511511,0.00012606,2]
[338585637,1726750118040,173.88,0.00010959,2]
[338585644,1726750171758,488.72,0.00012553,2]
[338585649,1726750203608,269.31,0.00012733,2]
[338585653,1726750231633,-447.54,0.00012743,2]
[338585654,1726750231642,-434.15451175,0.000128,2]
[338585655,1726750231654,-393.3952172,0.000128,2]
[338585656,1726750231690,-172.45027105,0.000128,2]
[338585657,1726750231702,-1162.82365886,0.000128,2]
[338585658,1726750231747,-1336.91996437,0.000128,2]
[338585659,1726750231804,-0.25637677,0.000128,2]
[338585660,1726750231813,-314.76362323,0.00012808,2]
[338585661,1726750231825,-285.23637677,0.00012808,2]
[338585662,1726750231834,-500.0,0.00012873,2]
[338585663,1726750231843,-160.31457967,0.00012873,2]
[338585664,1726750231853,-194.69679797,0.00012873,2]
[338585665,1726750231862,-160.31456967,0.00012873,2]
[338585666,1726750231872,-500.0,0.00012873,2]
[338585667,1726750231881,-226.48412703,0.00012899,2]
[338585668,1726750231890,-150.0,0.00012899,2]
[338585669,1726750231900,-1462.61087599,0.000129,2]
[338585670,1726750231911,-1706.98,0.000129,2]
[338585672,1726750231923,-814.99724662,0.000129,2]
[338585674,1726750231934,-960.92161359,0.000129,2]
[338585675,1726750231945,-714.46336982,0.000129,2]
[338585679,1726750237700,-281.62879398,0.000129,2]
[338585680,1726750237711,-1000.0,0.000129,2]
[338585681,1726750237720,-395.60232355,0.000129,2]
[338585682,1726750237731,-5000.0,0.000129,2]
[338585683,1726750237742,-1595.48310882,0.000129,2]
[338585684,1726750237753,-8928.78405659,0.000129,2]
[338585685,1726750237764,-726.22550044,0.000129,2]
[338585686,1726750237775,-504.46416423,0.000129,2]
[338585687,1726750237786,-448.7075297,0.000129,2]
[338585688,1726750237797,-845.57482597,0.000129,2]
[338585689,1726750237807,-17499.48575509,0.000129,2]
[338585690,1726750237819,-1879.79073718,0.000129,2]
[338585691,1726750237829,-1384.68581647,0.000129,2]
[338585692,1726750237840,-974.16207443,0.000129,2]
[338585693,1726750237851,-399.08923112,0.000129,2]
[338585694,1726750237861,-1470.87908501,0.000129,2]
[338585695,1726750237872,-1485.23262928,0.000129,2]
[338585696,1726750237883,-720.62291816,0.000129,2]
[338585697,1726750237894,-2709.94494954,0.000129,2]
[338585698,1726750237905,-5197.57096875,0.000129,2]
[338585699,1726750237916,-4583.2606,0.000129,2]
[338585700,1726750237929,-697.11886681,0.000129,2]
[338585701,1726750237941,-5403.3429348,0.000129,2]
[338585702,1726750237951,-585.41820824,0.000129,2]
[338585703,1726750237963,-22120.01753923,0.000129,2]
[338585704,1726750237973,-3100.0,0.000129,2]
[338585705,1726750237983,-394.12782113,0.000129,2]
[338585706,1726750237993,-10006.37556363,0.000129,2]
[338585707,1726750238004,-3006.44051846,0.000129,2]
[338585708,1726750238015,-7442.804616,0.000129,2]
[338585709,1726750238025,-10898.63709996,0.000129,2]
[338585710,1726750238035,-902.15263318,0.000129,2]
[338585711,1726750238045,-2111.25515809,0.000129,2]
[338585712,1726750238055,-326.13389991,0.000129,2]
[338585713,1726750238072,-1307.74999999,0.000129,2]
[338585714,1726750238088,-4446.08128561,0.000129,2]
[338585715,1726750238099,-19584.17613878,0.000129,2]
[338585716,1726750238110,-3974.5,0.000129,2]
[338585717,1726750238118,-449.59669731,0.000129,2]
[338585718,1726750238129,-2564.7511365,0.000129,2]
[338585721,1726750239652,-311.6,0.000129,2]
[338585722,1726750239664,-533.82,0.000129,2]
[338585723,1726750239676,-1335.0,0.000129,2]
[338585724,1726750239688,-1405.0,0.000129,2]
[338585725,1726750239699,-9136.42063367,0.000129,2]
[338585726,1726750239717,-639.6,0.000129,2]
[338585727,1726750239729,-588.209208,0.000129,2]
[338585728,1726750239771,-695.95800116,0.000129,2]
[338585729,1726750239783,-2495.58714316,0.000129,2]
[338585730,1726750239828,-71788.55862205,0.000129,2]
[338585731,1726750239838,-500.0,0.000129,2]
[338585732,1726750239848,-499.99,0.000129,2]
[338585733,1726750239857,-999.99,0.000129,2]
[338585734,1726750239867,-2334.39,0.000129,2]
[338585735,1726750239876,-162.14826699,0.000129,2]
[338585736,1726750239887,-150.35374544,0.000129,2]
[338585737,1726750239898,-178.74207767,0.000129,2]
[338585738,1726750239908,-150.99,0.000129,2]
[338585739,1726750239918,-7500.0,0.000129,2]
[338585740,1726750239928,-5280.65,0.000129,2]
[338585741,1726750239938,-830.24,0.000129,2]
[338585742,1726750239947,-304.37988106,0.000129,2]
[338585743,1726750239957,-275.13503499,0.000129,2]
[338585744,1726750239967,-500.0,0.00012973,2]
[338585745,1726750239977,-150.56,0.0001299,2]
[338585746,1726750239986,-773.74126147,0.0001299,2]
[338585747,1726750239996,-773.74126147,0.0001299,2]
[338585748,1726750240005,-773.74126147,0.0001299,2]
[338585749,1726750240015,-500.0,0.00012999,2]
[338585750,1726750240024,-500.0,0.00012999,2]
[338585751,1726750240036,-450.96651103,0.00012999,2]
[338585752,1726750240047,-299.99,0.00012999,2]
[338585753,1726750240059,-15150.0,0.00012999,2]
[338585754,1726750240068,-452224.5416561,0.00013,2]
[338585755,1726750240078,-1555086.32006395,0.00013,2]
[338585756,1726750240088,-3323725.14097281,0.00013,2]
[338585757,1726750240100,-3545.20493064,0.00013,2]
[338585758,1726750240110,-178.34,0.0001309,2]
[338585759,1726750240119,-275.13503499,0.00013186,2]
[338585760,1726750240129,-167.01,0.00013333,2]
[338585761,1726750240140,-384.49511512,0.00013396,2]
[338585762,1726750240149,-301.16,0.000134,2]
[338585763,1726750240159,-913.62,0.000134,2]
[338585764,1726750240169,-154.12,0.000134,2]
[338585765,1726750240180,-1518.55,0.000134,2]
[338585766,1726750240189,-350.92,0.000134,2]
[338585767,1726750240199,-852.33,0.000134,2]
[338585768,1726750240208,-301.41,0.000134,2]
[338585769,1726750240222,-301.96,0.000134,2]
[338585770,1726750240231,-357.37,0.000134,2]
[338585771,1726750240241,-275.13503499,0.00013471,2]
[338585772,1726750240251,-150.11,0.00013699,2]
[338585773,1726750240261,-1025.42,0.00013699,2]
[338585774,1726750240270,-275.13503499,0.00013757,2]
[338585775,1726750240279,-500.0,0.00013904,2]
[338585776,1726750240289,-1818.89258453,0.00013905,2]
[338585777,1726750240298,-200.0,0.00013939,2]
[338585778,1726750240308,-6576.02,0.00014092,7]
[338585779,1726750240317,-6576.02,0.00014092,7]
[338585780,1726750240326,-6576.02,0.00014092,7]
[338585781,1726750240336,-6576.02,0.00014092,7]
[338585782,1726750240345,-1110.19828497,0.00014102,2]
[338585783,1726750240356,-1163.52500789,0.00014102,2]
[338585784,1726750240366,-488.72,0.00014122,2]
[338585785,1726750240377,-1000.0,0.00014141,2]
[338585786,1726750240387,-600.0,0.00014178,2]
[338585787,1726750240398,-167.27,0.0001423,2]
[338585788,1726750240408,-5003.0488458,0.000143,2]
[338585789,1726750240417,-6576.02,0.00014365,7]
[338585790,1726750240427,-6576.02,0.00014365,7]
[338585791,1726750240436,-1025.42,0.00014384,2]
[338585792,1726750240446,-181.28,0.00014462,2]
[338585793,1726750240456,-199.06,0.00014496,2]
[338585794,1726750240467,-704.05,0.000145,2]
[338585795,1726750240476,-2006.29684697,0.000145,2]
[338585796,1726750240486,-2066.1,0.000145,2]
[338585797,1726750240495,-500.0,0.00014518,2]
[338585799,1726750240505,-199.722846,0.0001452,2]
[338585801,1726750240514,-1000.0,0.00014521,2]
[338585803,1726750240524,-360.472,0.000146,2]
[338585805,1726750240533,-180.407,0.000146,2]
[338585807,1726750240543,-998.58,0.000146,2]
[338585809,1726750240552,-226.635,0.000146,2]
[338585811,1726750240561,-266.509,0.000146,2]
[338585813,1726750240570,-581.8,0.000146,2]
[338585815,1726750240579,-150.0,0.000146,2]
[338585817,1726750240588,-5252.397,0.000146,2]
[338585818,1726750240598,-1083.515,0.000146,2]
[338585820,1726750240607,-6576.02,0.00014638,7]
[338585822,1726750240617,-6576.02,0.00014638,7]
[338585824,1726750240626,-15043.18,0.00014646,2]
[338585826,1726750240635,-5092.1315226,0.00014667,2]
[338585828,1726750240645,-1000.0,0.000147,4]
[338585831,1726750240654,-1000.0,0.000147,5]
[338585833,1726750240664,-502.0,0.000147,5]
[338585835,1726750240673,-1000.0,0.000147,4]
[338585837,1726750240682,-150.0,0.00014726,2]
[338585839,1726750240692,-150.0,0.00014728,2]
[338585840,1726750240702,-150.0,0.00014737,2]
[338585842,1726750240711,-150.0,0.00014737,2]
[338585844,1726750240721,-150.0,0.0001474,2]
[338585846,1726750240730,-150.0,0.0001474,2]
[338585848,1726750240739,-150.0,0.00014742,2]
[338585850,1726750240749,-150.0,0.00014744,2]
[338585852,1726750240758,-150.0,0.00014751,2]
[338585854,1726750240768,-150.0,0.00014751,2]
[338585857,1726750240777,-150.0,0.00014751,2]
[338585859,1726750240786,-150.0,0.00014754,2]
[338585860,1726750240795,-150.0,0.00014755,2]
[338585862,1726750240805,-150.0,0.00014755,2]
[338585864,1726750240814,-150.0,0.00014756,2]
[338585866,1726750240824,-150.0,0.00014759,2]
[338585868,1726750240834,-150.0,0.00014764,2]
[338585869,1726750240842,-150.0,0.00014765,2]
[338585870,1726750240850,-162.19739489,0.00014767,2]
[338585871,1726750240859,-150.0,0.0001477,2]
[338585872,1726750240868,-150.0,0.00014771,2]
[338585873,1726750240877,-150.0,0.00014773,2]
[338585874,1726750240887,-500.0,0.00014792,2]
[338585875,1726750240896,-388.26669587,0.00014794,2]
[338585876,1726750240905,-525.28025164,0.00014794,2]
[338585877,1726750240915,-500.0,0.00014794,2]
[338585878,1726750240924,-500.0,0.00014794,2]
[338585879,1726750240933,-500.0,0.00014794,2]
[338585880,1726750240942,-199.722846,0.00014794,2]
[338585881,1726750240951,-271.45305249,0.00014794,2]
[338585897,1726750241134,-500.0,0.00014794,2]
[338585899,1726750241144,-500.0,0.00014794,2]
[338585901,1726750241153,-500.0,0.00014794,2]
[338585903,1726750241162,-411.01,0.00014794,2]
[338585905,1726750241173,-500.0,0.00014794,2]
[338585907,1726750241183,-500.0,0.00014794,2]
[338585909,1726750241192,-213.01,0.00014794,2]
[338585911,1726750241202,-500.0,0.00014794,2]
[338585913,1726750241212,-476.4,0.00014794,2]
[338585915,1726750241221,-500.0,0.00014794,2]
[338585917,1726750241230,-500.0,0.00014794,2]
[338585919,1726750241239,-467.04,0.00014794,2]
[338585921,1726750241249,-500.0,0.00014794,2]
[338585923,1726750241258,-375.38,0.00014794,2]
[338585925,1726750241267,-639.61,0.00014794,2]
[338585927,1726750241276,-500.0,0.00014794,2]
[338585928,1726750241286,-500.0,0.00014794,2]
[338585930,1726750241295,-500.0,0.00014794,2]
[338585933,1726750241304,-500.0,0.00014794,2]
[338585934,1726750241314,-226.28,0.00014794,2]
[338585937,1726750241323,-500.0,0.00014794,2]
[338585938,1726750241332,-500.0,0.00014794,2]
[338585940,1726750241342,-500.0,0.00014794,2]
[338585942,1726750241351,-500.0,0.00014794,2]
[338585945,1726750241361,-500.0,0.00014794,2]
[338585946,1726750241370,-500.0,0.00014794,2]
[338585948,1726750241379,-500.0,0.00014794,2]
[338585950,1726750241388,-269.83,0.00014794,2]
[338585953,1726750241399,-500.0,0.00014794,2]
[338585955,1726750241408,-500.0,0.00014794,2]
[338585957,1726750241417,-337.57,0.00014794,2]
[338585959,1726750241426,-500.0,0.00014794,2]
[338585960,1726750241435,-434.77,0.00014794,2]
[338585962,1726750241444,-530.56,0.00014794,2]
[338585964,1726750241454,-500.0,0.00014794,2]
[338585966,1726750241465,-499.80383381,0.00014794,2]
[338585968,1726750241474,-500.0,0.00014794,2]
[338585970,1726750241483,-499.98789667,0.00014794,2]
[338585972,1726750241492,-600.57991977,0.00014794,2]
[338585974,1726750241501,-500.0,0.00014794,2]
[338585976,1726750241511,-500.0,0.00014794,2]
[338585978,1726750241520,-500.0,0.00014794,2]
[338585981,1726750241530,-500.0,0.00014794,2]
[338585983,1726750241541,-500.0,0.00014794,2]
[338585985,1726750241551,-500.0,0.00014794,2]
[338585987,1726750241561,-500.0,0.00014794,2]
[338585989,1726750241570,-500.0,0.00014794,2]
[338585991,1726750241580,-500.0,0.00014794,2]
[338585993,1726750241591,-157.05,0.00014794,2]
[338585995,1726750241602,-500.0,0.00014794,2]
[338585997,1726750241611,-500.0,0.00014794,2]
[338585999,1726750241621,-500.0,0.00014794,2]
[338586001,1726750241631,-414.5,0.00014794,2]
[338586003,1726750241641,-500.0,0.00014794,2]
[338586005,1726750241650,-500.0,0.00014794,2]
[338586007,1726750241659,-500.0,0.00014794,2]
[338586009,1726750241669,-500.0,0.00014794,2]
[338586011,1726750241679,-601.76,0.00014794,2]
[338586014,1726750241689,-500.0,0.00014794,2]
[338586016,1726750241698,-500.0,0.00014794,2]
[338586018,1726750241707,-500.0,0.00014794,2]
[338586019,1726750241717,-490.11,0.00014794,2]
[338586021,1726750241726,-500.0,0.00014794,2]
[338586023,1726750241735,-500.0,0.00014794,2]
[338586025,1726750241744,-500.0,0.00014794,2]
[338586027,1726750241754,-500.0,0.00014794,2]
[338586029,1726750241763,-438.15,0.00014794,2]
[338586032,1726750241773,-500.0,0.00014794,2]
[338586034,1726750241784,-500.0,0.00014794,2]
[338586036,1726750241793,-500.0,0.00014794,2]
[338586038,1726750241803,-500.0,0.00014794,2]
[338586040,1726750241812,-553.64,0.00014794,2]
[338586042,1726750241821,-500.0,0.00014794,2]
[338586044,1726750241831,-500.0,0.00014794,2]
[338586046,1726750241843,-449.81,0.00014794,2]
[338586048,1726750241853,-500.0,0.00014794,2]
[338586050,1726750241862,-500.0,0.00014794,2]
[338586052,1726750241872,-500.0,0.00014794,2]
[338586055,1726750241881,-323.35,0.00014794,2]
[338586057,1726750241891,-500.0,0.00014794,2]
[338586059,1726750241900,-500.0,0.00014794,2]
[338586061,1726750241909,-500.0,0.00014794,2]
[338586063,1726750241919,-256.96,0.00014794,2]
[338586065,1726750241931,-500.0,0.00014794,2]
[338586066,1726750241941,-198.99,0.00014794,2]
[338586067,1726750241951,-500.0,0.00014794,2]
[338586068,1726750241960,-500.0,0.00014794,2]
[338586069,1726750241970,-250.42,0.00014794,2]
[338586070,1726750241979,-500.0,0.00014794,2]
[338586071,1726750241989,-500.0,0.00014794,2]
[338586072,1726750241998,-252.19,0.00014794,2]
[338586073,1726750242008,-500.0,0.00014794,2]
[338586074,1726750242018,-500.0,0.00014794,2]
[338586075,1726750242028,-500.0,0.00014794,2]
[338586076,1726750242037,-310.37700052,0.00014794,2]
[338586077,1726750242047,-500.0,0.00014794,2]
[338586078,1726750242057,-500.0,0.00014794,2]
[338586079,1726750242067,-500.0,0.00014794,2]
[338586080,1726750242076,-335.21,0.00014794,2]
[338586081,1726750242086,-500.0,0.00014794,2]
[338586082,1726750242095,-500.0,0.00014794,2]
[338586083,1726750242105,-500.0,0.00014794,2]
[338586084,1726750242115,-500.0,0.00014794,2]
[338586085,1726750242124,-500.0,0.00014794,2]
[338586086,1726750242134,-176.8,0.00014794,2]
[338586087,1726750242144,-518.9386661,0.00014794,2]
[338586088,1726750242154,-500.0,0.00014794,2]
[338586089,1726750242164,-500.0,0.00014794,2]
[338586090,1726750242176,-500.0,0.00014794,2]
[338586091,1726750242185,-500.0,0.00014794,2]
[338586092,1726750242195,-500.0,0.00014794,2]
[338586093,1726750242205,-500.0,0.00014794,2]
[338586094,1726750242216,-500.0,0.00014794,2]
[338586095,1726750242229,-500.0,0.00014794,2]
[338586096,1726750242238,-339.21,0.00014794,2]
[338586097,1726750242249,-500.0,0.00014794,2]
[338586098,1726750242258,-500.0,0.00014794,2]
[338586099,1726750242268,-500.0,0.00014794,2]
[338586100,1726750242277,-500.0,0.00014794,2]
[338586101,1726750242287,-429.41,0.00014794,2]
[338586102,1726750242296,-500.0,0.00014794,2]
[338586103,1726750242305,-500.0,0.00014794,2]
[338586104,1726750242314,-500.0,0.00014794,2]
[338586105,1726750242323,-301.08,0.00014794,2]
[338586106,1726750242333,-500.0,0.00014794,2]
[338586107,1726750242343,-500.0,0.00014794,2]